[Event "Early-Titled-Tuesday-Blitz-November-28-2023"]
[Site "Chess.com"]
[Date "2023.11.28"]
[Round "6"]
[White "Alexsur1981"]
[Black "jeetjain"]
[Result "1-0"]
[WhiteElo "2848"]
[BlackElo "2538"]
[TimeControl "180+1"]
[EndTime "9:12:07 PST"]
[Termination "Alexsur1981 won by resignation"]

1. e4 {[%clk 0:03:00.9]} 1... Nc6 {[%clk 0:02:57.4]} 2. Nc3 {[%clk 0:03:00.5]}
2... d6 {[%clk 0:02:56.7]} 3. d4 {[%clk 0:02:54]} 3... Nf6 {[%clk 0:02:55.8]} 4.
d5 {[%clk 0:02:54.1]} 4... Nb8 {[%clk 0:02:54.8]} 5. Nf3 {[%clk 0:02:53.5]} 5...
c6 {[%clk 0:02:52.9]} 6. Bg5 {[%clk 0:02:47.1]} 6... cxd5 {[%clk 0:02:50.2]} 7.
exd5 {[%clk 0:02:38.9]} 7... Nbd7 {[%clk 0:02:49.8]} 8. Bd3 {[%clk 0:02:35.3]}
8... g6 {[%clk 0:02:49.7]} 9. Qd2 {[%clk 0:02:34]} 9... Bg7 {[%clk 0:02:49.6]}
10. Bh6 {[%clk 0:02:34.4]} 10... O-O {[%clk 0:02:47.8]} 11. h4 {[%clk
0:02:30.9]} 11... Nc5 {[%clk 0:02:47.2]} 12. Bxg7 {[%clk 0:02:30.1]} 12... Kxg7
{[%clk 0:02:47]} 13. h5 {[%clk 0:02:28.1]} 13... Nxd3+ {[%clk 0:02:39.1]} 14.
Qxd3 {[%clk 0:02:25.6]} 14... Bf5 {[%clk 0:02:34.6]} 15. Qd2 {[%clk 0:02:22.9]}
15... Rh8 {[%clk 0:01:56.9]} 16. h6+ {[%clk 0:02:20.4]} 16... Kf8 {[%clk
0:01:50.3]} 17. O-O {[%clk 0:02:13.6]} 17... Rc8 {[%clk 0:01:46.2]} 18. Rfe1
{[%clk 0:02:12.4]} 18... Qb6 {[%clk 0:01:38.1]} 19. Rab1 {[%clk 0:02:01.6]}
19... Nd7 {[%clk 0:01:33.8]} 20. Nd4 {[%clk 0:01:52.2]} 20... Rg8 {[%clk
0:01:16.2]} 21. Qf4 {[%clk 0:01:30.6]} 21... Nf6 {[%clk 0:00:57.5]} 22. Re3
{[%clk 0:01:15.9]} 22... Rxc3 {[%clk 0:00:45.1]} 23. Rxc3 {[%clk 0:01:14.1]}
23... Nxd5 {[%clk 0:00:45]} 24. Qxf5 {[%clk 0:01:02.8]} 1-0

[Event "Early-Titled-Tuesday-Blitz-November-28-2023"]
[Site "Chess.com"]
[Date "2023.11.28"]
[Round "6"]
[White "emeli_chess"]
[Black "hakanazeri2"]
[Result "0-1"]
[WhiteElo "2375"]
[BlackElo "2557"]
[TimeControl "180+1"]
[EndTime "9:12:07 PST"]
[Termination "hakanazeri2 won by resignation"]

1. d4 {[%clk 0:03:00.9]} 1... d5 {[%clk 0:02:56.6]} 2. c4 {[%clk 0:03:00.7]}
2... c6 {[%clk 0:02:57.5]} 3. Nc3 {[%clk 0:03:00.6]} 3... Nf6 {[%clk 0:02:56.7]}
4. e3 {[%clk 0:03:00.9]} 4... e6 {[%clk 0:02:54.9]} 5. Nf3 {[%clk 0:03:01]} 5...
Bd6 {[%clk 0:02:51.5]} 6. Bd3 {[%clk 0:03:00.7]} 6... Nbd7 {[%clk 0:02:49.6]} 7.
O-O {[%clk 0:03:00.5]} 7... O-O {[%clk 0:02:48.4]} 8. e4 {[%clk 0:03:00.6]} 8...
dxe4 {[%clk 0:02:41.1]} 9. Nxe4 {[%clk 0:03:00.6]} 9... Nxe4 {[%clk 0:02:41.4]}
10. Bxe4 {[%clk 0:03:01]} 10... Nf6 {[%clk 0:02:41.7]} 11. Bc2 {[%clk
0:03:01.6]} 11... b6 {[%clk 0:02:38.8]} 12. Qe2 {[%clk 0:03:00.2]} 12... Bb7
{[%clk 0:02:33.3]} 13. c5 {[%clk 0:02:58.7]} 13... bxc5 {[%clk 0:02:31.9]} 14.
dxc5 {[%clk 0:02:58.8]} 14... Bxc5 {[%clk 0:02:25.6]} 15. Rd1 {[%clk 0:02:58.9]}
15... Qb6 {[%clk 0:02:15.8]} 16. Bg5 {[%clk 0:02:42]} 16... Ba6 {[%clk 0:01:56]}
17. Qe5 {[%clk 0:02:05.7]} 17... Ng4 {[%clk 0:01:36.2]} 18. Qe4 {[%clk
0:01:49.7]} 18... f5 {[%clk 0:01:17.7]} 19. Qxe6+ {[%clk 0:01:49.3]} 19... Kh8
{[%clk 0:01:17.3]} 20. Ne5 {[%clk 0:00:49.1]} 20... Nxf2 {[%clk 0:01:04.9]} 21.
Rd7 {[%clk 0:00:36.5]} 21... Nh3+ {[%clk 0:00:58.6]} 22. Kh1 {[%clk 0:00:35.7]}
22... Nxg5 {[%clk 0:00:57.6]} 23. Nf7+ {[%clk 0:00:22.6]} 23... Rxf7 {[%clk
0:00:49.9]} 0-1

[Event "Early-Titled-Tuesday-Blitz-November-28-2023"]
[Site "Chess.com"]
[Date "2023.11.28"]
[Round "6"]
[White "DanylaBagrov"]
[Black "Rsnr"]
[Result "1-0"]
[WhiteElo "2593"]
[BlackElo "2903"]
[TimeControl "180+1"]
[EndTime "9:12:14 PST"]
[Termination "DanylaBagrov won on time"]

1. Nf3 {[%clk 0:03:00.4]} 1... d5 {[%clk 0:03:00.1]} 2. c4 {[%clk 0:03:00.1]}
2... d4 {[%clk 0:03:00]} 3. b4 {[%clk 0:02:58.5]} 3... g5 {[%clk 0:03:00.1]} 4.
h3 {[%clk 0:02:51.8]} 4... h6 {[%clk 0:02:48.6]} 5. Bb2 {[%clk 0:02:50]} 5...
Bg7 {[%clk 0:02:48.8]} 6. e3 {[%clk 0:02:49.2]} 6... e5 {[%clk 0:02:43.7]} 7.
exd4 {[%clk 0:02:37.6]} 7... exd4 {[%clk 0:02:43.8]} 8. Bd3 {[%clk 0:02:37.9]}
8... Ne7 {[%clk 0:02:38.5]} 9. O-O {[%clk 0:02:33.2]} 9... O-O {[%clk
0:02:25.5]} 10. Na3 {[%clk 0:02:24.8]} 10... Nbc6 {[%clk 0:02:14.1]} 11. Nc2
{[%clk 0:02:21.9]} 11... a5 {[%clk 0:01:57]} 12. a3 {[%clk 0:02:03.1]} 12... Bf5
{[%clk 0:01:55.7]} 13. Bxf5 {[%clk 0:01:59.4]} 13... Nxf5 {[%clk 0:01:56.6]} 14.
d3 {[%clk 0:01:49.3]} 14... axb4 {[%clk 0:01:28.3]} 15. axb4 {[%clk 0:01:50.2]}
15... Rxa1 {[%clk 0:01:28.3]} 16. Qxa1 {[%clk 0:01:47.4]} 16... Re8 {[%clk
0:01:28.6]} 17. b5 {[%clk 0:01:45.2]} 17... Ne5 {[%clk 0:01:28.6]} 18. Nxe5
{[%clk 0:01:29.9]} 18... Bxe5 {[%clk 0:01:29.5]} 19. Qa7 {[%clk 0:01:27.9]}
19... b6 {[%clk 0:00:43.5]} 20. Nb4 {[%clk 0:01:26.9]} 20... Qd6 {[%clk
0:00:43.2]} 21. Nd5 {[%clk 0:01:19.8]} 21... Bh2+ {[%clk 0:00:15.5]} 22. Kh1
{[%clk 0:01:19.2]} 22... Bg3 {[%clk 0:00:16.3]} 23. Bxd4 {[%clk 0:00:57.8]}
23... Nxd4 {[%clk 0:00:08.4]} 24. fxg3 {[%clk 0:00:56.8]} 24... Rc8 {[%clk
0:00:05.5]} 25. Qb7 {[%clk 0:00:53.9]} 25... Qe6 {[%clk 0:00:04.7]} 26. Qxc8+
{[%clk 0:00:51.7]} 1-0

[Event "Early-Titled-Tuesday-Blitz-November-28-2023"]
[Site "Chess.com"]
[Date "2023.11.28"]
[Round "6"]
[White "inagreV"]
[Black "FMStan15"]
[Result "1-0"]
[WhiteElo "2426"]
[BlackElo "2068"]
[TimeControl "180+1"]
[EndTime "9:12:15 PST"]
[Termination "inagreV won by resignation"]

1. d4 {[%clk 0:02:48.9]} 1... Nf6 {[%clk 0:02:58]} 2. c4 {[%clk 0:02:47.8]} 2...
g6 {[%clk 0:02:57.4]} 3. Nc3 {[%clk 0:02:47.7]} 3... Bg7 {[%clk 0:02:58.3]} 4.
Nf3 {[%clk 0:02:46.1]} 4... d6 {[%clk 0:02:58.3]} 5. Bf4 {[%clk 0:02:46.3]} 5...
O-O {[%clk 0:02:55]} 6. h3 {[%clk 0:02:46.2]} 6... Nbd7 {[%clk 0:02:55.5]} 7. e3
{[%clk 0:02:46.6]} 7... c5 {[%clk 0:02:55.6]} 8. Be2 {[%clk 0:02:46.6]} 8...
cxd4 {[%clk 0:02:50.3]} 9. exd4 {[%clk 0:02:46.2]} 9... a6 {[%clk 0:02:47.7]}
10. O-O {[%clk 0:02:45.6]} 10... Re8 {[%clk 0:02:46.2]} 11. Re1 {[%clk
0:02:40.5]} 11... b6 {[%clk 0:02:46.4]} 12. Bf1 {[%clk 0:02:39.3]} 12... Bb7
{[%clk 0:02:46.6]} 13. d5 {[%clk 0:02:39.3]} 13... Rc8 {[%clk 0:02:35.2]} 14.
Rc1 {[%clk 0:02:38.4]} 14... a5 {[%clk 0:02:21.4]} 15. Nd4 {[%clk 0:02:32.3]}
15... Nc5 {[%clk 0:02:21.3]} 16. Ncb5 {[%clk 0:02:27.5]} 16... Nfd7 {[%clk
0:02:13.1]} 17. Na7 {[%clk 0:02:20]} 17... Ra8 {[%clk 0:02:04.5]} 18. Nac6
{[%clk 0:02:19.8]} 18... Bxc6 {[%clk 0:02:03.5]} 19. Nxc6 {[%clk 0:02:19.7]}
19... Qc7 {[%clk 0:01:50.7]} 20. Nxe7+ {[%clk 0:02:19.4]} 20... Kh8 {[%clk
0:01:49.9]} 21. b3 {[%clk 0:02:15.4]} 21... Ne5 {[%clk 0:01:42.3]} 22. Bxe5
{[%clk 0:02:03.5]} 22... Rxe7 {[%clk 0:01:33.6]} 23. Bxg7+ {[%clk 0:02:02.8]}
23... Kxg7 {[%clk 0:01:33.3]} 24. Rc3 {[%clk 0:02:01.7]} 24... Qd7 {[%clk
0:01:06.4]} 25. Qd4+ {[%clk 0:01:58.9]} 25... Kg8 {[%clk 0:01:00.8]} 26. Rxe7
{[%clk 0:01:57.1]} 26... Qxe7 {[%clk 0:01:00.4]} 27. Re3 {[%clk 0:01:57.4]}
27... Qd8 {[%clk 0:00:57.3]} 28. h4 {[%clk 0:01:48.3]} 28... h5 {[%clk
0:00:55.1]} 29. g3 {[%clk 0:01:41.3]} 29... Ra7 {[%clk 0:00:54.9]} 30. a3 {[%clk
0:01:26.6]} 30... Nd7 {[%clk 0:00:41.7]} 31. Be2 {[%clk 0:01:20]} 31... Ne5
{[%clk 0:00:37.4]} 32. f4 {[%clk 0:01:18.7]} 32... Ng4 {[%clk 0:00:35.1]} 33.
Bxg4 {[%clk 0:01:18.9]} 33... hxg4 {[%clk 0:00:34.9]} 34. Kf2 {[%clk 0:01:01.9]}
34... Qf8 {[%clk 0:00:29.7]} 35. Qxb6 {[%clk 0:00:59.4]} 35... Re7 {[%clk
0:00:28.1]} 36. Qxd6 {[%clk 0:00:55.2]} 36... Rxe3 {[%clk 0:00:24.3]} 37. Qxf8+
{[%clk 0:00:55]} 37... Kxf8 {[%clk 0:00:23.8]} 38. Kxe3 {[%clk 0:00:55.7]} 1-0

[Event "Early-Titled-Tuesday-Blitz-November-28-2023"]
[Site "Chess.com"]
[Date "2023.11.28"]
[Round "6"]
[White "KononenkoD"]
[Black "Boundless_Strike"]
[Result "1-0"]
[WhiteElo "2524"]
[BlackElo "2648"]
[TimeControl "180+1"]
[EndTime "9:12:16 PST"]
[Termination "KononenkoD won by resignation"]

1. d4 {[%clk 0:02:59.9]} 1... e5 {[%clk 0:02:59]} 2. dxe5 {[%clk 0:02:59.7]}
2... d6 {[%clk 0:02:59.4]} 3. exd6 {[%clk 0:02:59.1]} 3... Bxd6 {[%clk
0:03:00.3]} 4. g3 {[%clk 0:02:58.9]} 4... Nc6 {[%clk 0:02:59.7]} 5. Bg2 {[%clk
0:02:59.1]} 5... Qe7 {[%clk 0:02:58.7]} 6. Nf3 {[%clk 0:02:56.1]} 6... Bg4
{[%clk 0:02:58.6]} 7. Nbd2 {[%clk 0:02:55.3]} 7... O-O-O {[%clk 0:02:58.7]} 8.
O-O {[%clk 0:02:55.6]} 8... Nf6 {[%clk 0:02:58.7]} 9. c3 {[%clk 0:02:53.2]} 9...
h5 {[%clk 0:02:58.4]} 10. h4 {[%clk 0:02:52]} 10... g5 {[%clk 0:02:55.3]} 11.
Nxg5 {[%clk 0:02:45.7]} 11... Bxe2 {[%clk 0:02:48.9]} 12. Qe1 {[%clk 0:02:42.9]}
12... Rhe8 {[%clk 0:02:31.1]} 13. Nb3 {[%clk 0:02:41.1]} 13... Ng4 {[%clk
0:02:14.1]} 14. Ne4 {[%clk 0:02:23.9]} 14... Bxf1 {[%clk 0:01:33.9]} 15. Qxf1
{[%clk 0:02:23.2]} 15... f6 {[%clk 0:01:11.9]} 16. Bd2 {[%clk 0:02:16.1]} 16...
Qh7 {[%clk 0:00:54.7]} 17. Re1 {[%clk 0:02:14.1]} 17... Bf8 {[%clk 0:00:36.8]}
18. Qb5 {[%clk 0:02:04.2]} 18... a6 {[%clk 0:00:36.5]} 19. Qa4 {[%clk
0:02:01.9]} 19... Qd7 {[%clk 0:00:27.4]} 20. Re2 {[%clk 0:01:44.2]} 20... Qd3
{[%clk 0:00:23.3]} 21. Bf1 {[%clk 0:01:34.5]} 21... Qf3 {[%clk 0:00:23.4]} 22.
Bf4 {[%clk 0:01:14.8]} 22... Qd3 {[%clk 0:00:11.8]} 23. Re1 {[%clk 0:00:56.4]}
23... f5 {[%clk 0:00:09.9]} 24. Bxd3 {[%clk 0:00:55.2]} 24... Rxd3 {[%clk
0:00:08.8]} 25. Nd6+ {[%clk 0:00:52]} 1-0

[Event "Early-Titled-Tuesday-Blitz-November-28-2023"]
[Site "Chess.com"]
[Date "2023.11.28"]
[Round "6"]
[White "NovoselovRoman"]
[Black "IM_ArthurDW08"]
[Result "0-1"]
[WhiteElo "2553"]
[BlackElo "2790"]
[TimeControl "180+1"]
[EndTime "9:12:20 PST"]
[Termination "IM_ArthurDW08 won on time"]

1. e4 {[%clk 0:02:58.8]} 1... c5 {[%clk 0:02:58.1]} 2. Nc3 {[%clk 0:02:57.9]}
2... d6 {[%clk 0:02:57.6]} 3. g3 {[%clk 0:02:54.2]} 3... g6 {[%clk 0:02:52.3]}
4. Bg2 {[%clk 0:02:53.4]} 4... Bg7 {[%clk 0:02:50.5]} 5. d3 {[%clk 0:02:53.9]}
5... Nc6 {[%clk 0:02:50.7]} 6. Be3 {[%clk 0:02:54.3]} 6... Nf6 {[%clk
0:02:42.6]} 7. h3 {[%clk 0:02:51.9]} 7... O-O {[%clk 0:02:42.2]} 8. f4 {[%clk
0:02:49]} 8... Rb8 {[%clk 0:02:38.7]} 9. a4 {[%clk 0:02:48.4]} 9... a6 {[%clk
0:02:37.3]} 10. Nge2 {[%clk 0:02:48.6]} 10... Nd7 {[%clk 0:02:35.7]} 11. d4
{[%clk 0:02:46.5]} 11... b5 {[%clk 0:02:28.5]} 12. axb5 {[%clk 0:02:45]} 12...
axb5 {[%clk 0:02:29.4]} 13. dxc5 {[%clk 0:02:35.6]} 13... Nxc5 {[%clk
0:01:53.6]} 14. e5 {[%clk 0:02:20.7]} 14... Na5 {[%clk 0:01:32.1]} 15. Bd4
{[%clk 0:02:06.3]} 15... b4 {[%clk 0:01:20.2]} 16. Nd5 {[%clk 0:01:52.3]} 16...
Ne6 {[%clk 0:01:07.9]} 17. Rxa5 {[%clk 0:01:32.4]} 17... Qxa5 {[%clk 0:01:00.3]}
18. Nxe7+ {[%clk 0:01:32]} 18... Kh8 {[%clk 0:01:00.2]} 19. exd6 {[%clk
0:00:56.5]} 19... Nxd4 {[%clk 0:00:58.4]} 20. Nxd4 {[%clk 0:00:57.3]} 20... Qc5
{[%clk 0:00:55.6]} 21. Ndc6 {[%clk 0:00:45.7]} 21... Ba6 {[%clk 0:00:53.8]} 22.
Qf3 {[%clk 0:00:11.8]} 22... Qxc2 {[%clk 0:00:49.8]} 23. Nxb8 {[%clk 0:00:06.8]}
23... Qc1+ {[%clk 0:00:50]} 24. Kf2 {[%clk 0:00:06.6]} 24... Bd4+ {[%clk
0:00:49.6]} 0-1

[Event "Early-Titled-Tuesday-Blitz-November-28-2023"]
[Site "Chess.com"]
[Date "2023.11.28"]
[Round "6"]
[White "Sconko"]
[Black "juniortay"]
[Result "0-1"]
[WhiteElo "2248"]
[BlackElo "2492"]
[TimeControl "180+1"]
[EndTime "9:12:20 PST"]
[Termination "juniortay won by resignation"]

1. e4 {[%clk 0:02:02.4]} 1... c5 {[%clk 0:02:59.2]} 2. Nc3 {[%clk 0:01:59.6]}
2... Nc6 {[%clk 0:02:57.1]} 3. Bb5 {[%clk 0:01:59.2]} 3... Na5 {[%clk
0:02:54.6]} 4. f4 {[%clk 0:01:41.7]} 4... a6 {[%clk 0:02:53.5]} 5. Be2 {[%clk
0:01:41.1]} 5... b5 {[%clk 0:02:52.1]} 6. Nf3 {[%clk 0:01:39.3]} 6... Bb7 {[%clk
0:02:52.4]} 7. d3 {[%clk 0:01:39.5]} 7... d6 {[%clk 0:02:51.6]} 8. O-O {[%clk
0:01:39.3]} 8... Nf6 {[%clk 0:02:52]} 9. a3 {[%clk 0:01:39.3]} 9... g6 {[%clk
0:02:51.9]} 10. Qe1 {[%clk 0:01:38.7]} 10... Bg7 {[%clk 0:02:50.8]} 11. Qh4
{[%clk 0:01:38.4]} 11... Nc6 {[%clk 0:02:39.9]} 12. f5 {[%clk 0:01:34.8]} 12...
Nd4 {[%clk 0:02:36.2]} 13. Bh6 {[%clk 0:01:28.3]} 13... Bxh6 {[%clk 0:02:22.2]}
14. Qxh6 {[%clk 0:01:29.2]} 14... Nxc2 {[%clk 0:02:13.6]} 15. fxg6 {[%clk
0:01:21.1]} 15... fxg6 {[%clk 0:02:02]} 16. Ng5 {[%clk 0:01:11.8]} 16... Qb6
{[%clk 0:01:59.9]} 17. Ne6 {[%clk 0:00:54.2]} 17... Kd7 {[%clk 0:01:59.9]} 18.
Rxf6 {[%clk 0:00:46.1]} 18... Nxa1 {[%clk 0:01:50.8]} 19. Bg4 {[%clk 0:00:32.1]}
19... Rae8 {[%clk 0:01:08.4]} 20. Rf7 {[%clk 0:00:16.2]} 20... Kc8 {[%clk
0:01:02.9]} 21. Nxc5+ {[%clk 0:00:14.7]} 21... Kb8 {[%clk 0:01:03.3]} 22. d4
{[%clk 0:00:10.9]} 22... dxc5 {[%clk 0:01:03]} 23. Qf4+ {[%clk 0:00:11.5]} 23...
Qd6 {[%clk 0:01:01.7]} 24. e5 {[%clk 0:00:11.6]} 24... Qxd4+ {[%clk 0:01:02]}
25. Qxd4 {[%clk 0:00:12.2]} 25... cxd4 {[%clk 0:01:02.9]} 26. Ne2 {[%clk
0:00:12.3]} 26... d3 {[%clk 0:01:02.9]} 27. Nc3 {[%clk 0:00:12.1]} 27... Rhf8
{[%clk 0:00:59.1]} 28. e6 {[%clk 0:00:11.8]} 0-1

[Event "Early-Titled-Tuesday-Blitz-November-28-2023"]
[Site "Chess.com"]
[Date "2023.11.28"]
[Round "6"]
[White "Flaccidmoves"]
[Black "LUISMIGUELOV"]
[Result "1/2-1/2"]
[WhiteElo "2391"]
[BlackElo "2220"]
[TimeControl "180+1"]
[EndTime "9:12:25 PST"]
[Termination "Game drawn by repetition"]

1. e4 {[%clk 0:03:00.9]} 1... c6 {[%clk 0:03:00.4]} 2. d4 {[%clk 0:03:00.4]}
2... d5 {[%clk 0:03:00.7]} 3. e5 {[%clk 0:03:01.1]} 3... c5 {[%clk 0:03:00.2]}
4. dxc5 {[%clk 0:03:00.8]} 4... Nc6 {[%clk 0:03:00.3]} 5. Nf3 {[%clk 0:03:00.5]}
5... Bg4 {[%clk 0:03:00.2]} 6. a3 {[%clk 0:02:58.4]} 6... e6 {[%clk 0:02:55]} 7.
b4 {[%clk 0:02:57.7]} 7... Nxe5 {[%clk 0:02:52.4]} 8. Bb2 {[%clk 0:02:54]} 8...
Bxf3 {[%clk 0:02:43.3]} 9. gxf3 {[%clk 0:02:52.4]} 9... Nd7 {[%clk 0:02:39.8]}
10. Rg1 {[%clk 0:02:40.5]} 10... Ngf6 {[%clk 0:02:38.9]} 11. Bb5 {[%clk
0:02:34]} 11... a6 {[%clk 0:02:34.3]} 12. Ba4 {[%clk 0:02:32.8]} 12... g6 {[%clk
0:01:49.7]} 13. Bxd7+ {[%clk 0:02:22.2]} 13... Kxd7 {[%clk 0:01:49.7]} 14. c4
{[%clk 0:02:17.2]} 14... Bg7 {[%clk 0:01:32.2]} 15. cxd5 {[%clk 0:02:12.6]}
15... exd5 {[%clk 0:01:31.8]} 16. Nc3 {[%clk 0:02:12.2]} 16... Re8+ {[%clk
0:01:28.8]} 17. Kf1 {[%clk 0:02:12.2]} 17... Ke7 {[%clk 0:01:24.2]} 18. Qd4
{[%clk 0:01:58.2]} 18... Kf8 {[%clk 0:01:14.2]} 19. Rd1 {[%clk 0:01:56.5]} 19...
Nh5 {[%clk 0:01:09.7]} 20. Qxd5 {[%clk 0:01:41.5]} 20... Qxd5 {[%clk 0:01:08.2]}
21. Rxd5 {[%clk 0:01:42.4]} 21... Rad8 {[%clk 0:01:01]} 22. Rxd8 {[%clk
0:01:12]} 22... Rxd8 {[%clk 0:01:00.5]} 23. Ke2 {[%clk 0:01:10.6]} 23... Nf4+
{[%clk 0:00:53]} 24. Ke3 {[%clk 0:01:01.7]} 24... Nd5+ {[%clk 0:00:50.7]} 25.
Nxd5 {[%clk 0:00:58.9]} 25... Bxb2 {[%clk 0:00:50.6]} 26. Nb6 {[%clk 0:00:39.5]}
26... Bxa3 {[%clk 0:00:49.9]} 27. Rb1 {[%clk 0:00:36.7]} 27... a5 {[%clk
0:00:49]} 28. bxa5 {[%clk 0:00:30]} 28... Bxc5+ {[%clk 0:00:48.6]} 29. Ke2
{[%clk 0:00:30.1]} 29... Bxb6 {[%clk 0:00:44.3]} 30. Rxb6 {[%clk 0:00:31]} 30...
Rd5 {[%clk 0:00:42.6]} 31. Rxb7 {[%clk 0:00:26]} 31... Rxa5 {[%clk 0:00:42.8]}
32. Kf1 {[%clk 0:00:26.6]} 32... Kg7 {[%clk 0:00:42.4]} 33. Kg2 {[%clk
0:00:25.6]} 33... h5 {[%clk 0:00:42.8]} 34. Rc7 {[%clk 0:00:24]} 34... Rf5
{[%clk 0:00:43]} 35. Rb7 {[%clk 0:00:23.8]} 35... Rf6 {[%clk 0:00:42.7]} 36. Rc7
{[%clk 0:00:24.1]} 36... Rf5 {[%clk 0:00:43]} 37. Rb7 {[%clk 0:00:24.5]} 37...
Rf6 {[%clk 0:00:43.2]} 38. Rc7 {[%clk 0:00:25]} 38... Rf5 {[%clk 0:00:43.2]}
1/2-1/2

[Event "Early-Titled-Tuesday-Blitz-November-28-2023"]
[Site "Chess.com"]
[Date "2023.11.28"]
[Round "6"]
[White "Elbebiber"]
[Black "Der_Balak_3Halak"]
[Result "0-1"]
[WhiteElo "2111"]
[BlackElo "2302"]
[TimeControl "180+1"]
[EndTime "9:12:26 PST"]
[Termination "Der_Balak_3Halak won by resignation"]

1. d4 {[%clk 0:03:00.9]} 1... g6 {[%clk 0:03:00.9]} 2. e4 {[%clk 0:02:58.3]}
2... Bg7 {[%clk 0:03:01.8]} 3. Nc3 {[%clk 0:02:57.3]} 3... d6 {[%clk 0:03:01.1]}
4. Be3 {[%clk 0:02:57]} 4... Nd7 {[%clk 0:03:00.7]} 5. Qd2 {[%clk 0:02:53.7]}
5... e5 {[%clk 0:02:56.8]} 6. Bc4 {[%clk 0:02:44.3]} 6... Ngf6 {[%clk
0:02:51.9]} 7. f3 {[%clk 0:02:38.9]} 7... O-O {[%clk 0:02:49.8]} 8. Nge2 {[%clk
0:02:38.4]} 8... c6 {[%clk 0:02:45.2]} 9. d5 {[%clk 0:02:33.6]} 9... c5 {[%clk
0:02:41.3]} 10. Bh6 {[%clk 0:02:25.3]} 10... Nxe4 {[%clk 0:02:38.4]} 11. Nxe4
{[%clk 0:02:19.2]} 11... Qh4+ {[%clk 0:02:37.6]} 12. g3 {[%clk 0:02:17.7]} 12...
Qxh6 {[%clk 0:02:37]} 13. Qxh6 {[%clk 0:02:12.3]} 13... Bxh6 {[%clk 0:02:37.9]}
14. Nxd6 {[%clk 0:02:09.9]} 14... Nb6 {[%clk 0:02:33.1]} 15. b3 {[%clk
0:01:53.9]} 15... Rd8 {[%clk 0:02:26.3]} 16. Nxc8 {[%clk 0:01:41.5]} 16... Raxc8
{[%clk 0:02:23.9]} 17. Rd1 {[%clk 0:01:35.9]} 17... Be3 {[%clk 0:01:59.6]} 18.
Kf1 {[%clk 0:01:21.3]} 18... Kg7 {[%clk 0:01:45.3]} 19. Kg2 {[%clk 0:01:21.1]}
19... f5 {[%clk 0:01:40]} 20. Rhe1 {[%clk 0:01:19.7]} 20... a6 {[%clk
0:01:37.1]} 21. a4 {[%clk 0:01:06.6]} 21... Kf6 {[%clk 0:01:34.3]} 22. Nc3
{[%clk 0:00:54.1]} 22... Bd4 {[%clk 0:01:33.7]} 23. Ne2 {[%clk 0:00:53.9]} 23...
Rd6 {[%clk 0:01:08]} 24. c3 {[%clk 0:00:51]} 24... Be3 {[%clk 0:01:06.1]} 25.
Rd3 {[%clk 0:00:49.3]} 25... Bh6 {[%clk 0:01:03.2]} 26. h3 {[%clk 0:00:35.5]}
26... Rcd8 {[%clk 0:01:02]} 27. Red1 {[%clk 0:00:34.8]} 27... e4 {[%clk
0:01:00]} 28. fxe4 {[%clk 0:00:32.8]} 28... fxe4 {[%clk 0:01:00.9]} 29. Rf1+
{[%clk 0:00:32.7]} 29... Ke5 {[%clk 0:00:59.9]} 30. Rdd1 {[%clk 0:00:27.6]}
30... Nxd5 {[%clk 0:00:58.4]} 31. Bxd5 {[%clk 0:00:26]} 31... Rxd5 {[%clk
0:00:59.3]} 32. Rxd5+ {[%clk 0:00:24.7]} 32... Rxd5 {[%clk 0:01:00.2]} 33. Nf4
{[%clk 0:00:13]} 33... Rd2+ {[%clk 0:00:56.7]} 34. Kg1 {[%clk 0:00:10.3]} 34...
Bxf4 {[%clk 0:00:56.5]} 35. gxf4+ {[%clk 0:00:10.5]} 35... Kf5 {[%clk
0:00:55.6]} 0-1

[Event "Early-Titled-Tuesday-Blitz-November-28-2023"]
[Site "Chess.com"]
[Date "2023.11.28"]
[Round "6"]
[White "Pingah9"]
[Black "AsaHoffmann"]
[Result "1-0"]
[WhiteElo "2533"]
[BlackElo "2356"]
[TimeControl "180+1"]
[EndTime "9:12:32 PST"]
[Termination "Pingah9 won on time"]

1. e4 {[%clk 0:03:00.9]} 1... d6 {[%clk 0:02:56.9]} 2. d3 {[%clk 0:03:00.6]}
2... c6 {[%clk 0:02:56]} 3. Nc3 {[%clk 0:03:00.7]} 3... Nf6 {[%clk 0:02:55.7]}
4. g3 {[%clk 0:03:00.9]} 4... e5 {[%clk 0:02:55.5]} 5. Bg2 {[%clk 0:03:01.2]}
5... Be7 {[%clk 0:02:55.1]} 6. Nge2 {[%clk 0:03:01.4]} 6... Be6 {[%clk
0:02:52.6]} 7. h3 {[%clk 0:03:01.8]} 7... Qd7 {[%clk 0:02:51.9]} 8. f4 {[%clk
0:03:02]} 8... exf4 {[%clk 0:02:47.6]} 9. Bxf4 {[%clk 0:03:02.2]} 9... Na6
{[%clk 0:02:39.8]} 10. Qd2 {[%clk 0:03:02]} 10... b5 {[%clk 0:02:32.4]} 11. Nd4
{[%clk 0:02:55.1]} 11... b4 {[%clk 0:02:25.1]} 12. Nce2 {[%clk 0:02:54.8]} 12...
Rc8 {[%clk 0:02:15.8]} 13. Nxe6 {[%clk 0:02:46.4]} 13... fxe6 {[%clk 0:02:08.9]}
14. d4 {[%clk 0:02:45.5]} 14... c5 {[%clk 0:02:04]} 15. c3 {[%clk 0:02:44.7]}
15... O-O {[%clk 0:01:42.9]} 16. O-O {[%clk 0:02:38.3]} 16... bxc3 {[%clk
0:01:25.3]} 17. bxc3 {[%clk 0:02:37.8]} 17... cxd4 {[%clk 0:01:25.1]} 18. cxd4
{[%clk 0:02:37.5]} 18... d5 {[%clk 0:01:23.4]} 19. exd5 {[%clk 0:02:11.7]} 19...
exd5 {[%clk 0:01:12.4]} 20. Be5 {[%clk 0:02:05.8]} 20... Ne4 {[%clk 0:01:08.9]}
21. Qe3 {[%clk 0:02:04.3]} 21... Nb4 {[%clk 0:00:50.1]} 22. Rxf8+ {[%clk
0:01:47.1]} 22... Bxf8 {[%clk 0:00:47.4]} 23. Bxe4 {[%clk 0:01:35.3]} 23... dxe4
{[%clk 0:00:46.8]} 24. Rf1 {[%clk 0:01:28.1]} 24... Qxh3 {[%clk 0:00:42]} 25.
Qxe4 {[%clk 0:01:21.6]} 25... Qd7 {[%clk 0:00:33.8]} 26. Nf4 {[%clk 0:01:14.3]}
26... Nc6 {[%clk 0:00:32.2]} 27. d5 {[%clk 0:01:07.5]} 27... Nxe5 {[%clk
0:00:31.5]} 28. Qxe5 {[%clk 0:01:08.4]} 28... Qd6 {[%clk 0:00:31.8]} 29. Qe4
{[%clk 0:01:03.1]} 29... Be7 {[%clk 0:00:29.9]} 30. Kg2 {[%clk 0:01:00.9]} 30...
Bf6 {[%clk 0:00:29.4]} 31. Ne6 {[%clk 0:00:52.4]} 31... Re8 {[%clk 0:00:28.2]}
32. Rxf6 {[%clk 0:00:49.1]} 1-0